Cogmind - Beta 14 @@@ ROGUE MODE // 2024.08.11 @ 06:18:49 Player: Lillith Result: Destroyed by N6-6U4(R) with Subdweller Machine Gun Performance ------------- Evolutions (0) 0 Regions Visited (2) 400 Robots Destroyed (19) 95 Value Destroyed (509) 509 Prototype IDs (0) 0 Alien Tech Used (0) 0 Bonus (0) 0 TOTAL SCORE: 1004 Bonus ------- None Cogmind --------- Core Integrity 0/250 Matter 300/300 Energy 84/100 System Corruption 0% Temperature Cool (0) Movement Rolling (110) Location -10/Subcaves Parts ------- > --- POWER (1) -------- (None) > --- PROPULSION (2) --- Subdweller Monowheel Subdweller Monowheel > --- UTILITY (2) ------ Small Storage Unit > --- WEAPON (2) ------- Subdweller Beam Cannon Subdweller Machine Gun > --- INVENTORY (8) ---- Subdweller Power Source Light Nuclear Core Seismic Detector Targeting Computer Tractor Beam Subdweller Laser Assault Rifle Flamer Peak State ------------ > --- POWER ------------ Ion Engine > --- PROPULSION ------- Subdweller Monowheel Subdweller Monowheel > --- UTILITY ---------- Small Storage Unit Light Armor Plating > --- WEAPON ----------- Subdweller Beam Cannon Subdweller Machine Gun > --- INVENTORY -------- Subdweller Power Source Light Nuclear Core Seismic Detector Targeting Computer Tractor Beam Subdweller Laser Assault Rifle Flamer [Rating: 12] Favorites ----------- Power Ion Engine Engine Ion Engine Propulsion Aluminum Leg Leg Aluminum Leg Wheel Subdweller Monowheel Utility Small Storage Unit Device Seismic Detector Storage Small Storage Unit Protection Light Armor Plating Weapon Beam Cannon Energy Gun EM Pulse Gun Energy Cannon Beam Cannon Ballistic Gun Assault Rifle Build | -11 -10 -10 ------- Run | Yrd Mat Sub Slots Evolved . | . . . Power . | . . . Propulsion . | . . . Utility . | . . . Weapon . | . . . Parts Attached 19 | 7 5 7 Power 1 | 1 . . Engine 1 | 1 . . Core . | . . . Reactor . | . . . Propulsion 5 | 2 . 3 Treads . | . . . Leg 2 | 2 . . Wheel 3 | . . 3 Hover . | . . . Flight . | . . . Utility 7 | 2 4 1 Device 3 | 1 2 . Storage 1 | 1 . . Processor . | . . . Hackware . | . . . Protection 3 | . 2 1 Artifact . | . . . Weapon 6 | 2 1 3 Energy Gun 1 | 1 . . Energy Cannon 2 | . 1 1 Ballistic Gun 3 | 1 . 2 Ballistic Cannon . | . . . Launcher . | . . . Special Weapon . | . . . Impact Weapon . | . . . Slashing Weapon . | . . . Piercing Weapon . | . . . Special Melee Weapon . | . . . Unidentified Prototypes . | . . . Parts Lost 5 | . 1 4 Power 1 | . . 1 Propulsion 1 | . . 1 Utility 2 | . 1 1 Weapon 1 | . . 1 Highest Loss Streak 2 | . 1 2 To Critical Strikes . | . . . Average Slot Usage (%) 97 | . 99 96 Engine 13 | . 14 13 Leg 14 | . 28 9 Wheel 10 | . . 15 Device 7 | . 13 5 Storage 14 | . 14 14 Protection 6 | . . 8 Energy Gun 5 | . 14 1 Energy Cannon 12 | . 8 14 Ballistic Gun 10 | . 5 12 Peak Build Rating 12 | 7 8 12 Average Rating 8 | 5 7 8 On Entrance 5 | . 7 8 Naked Turns . | . . . Heaviest Build 25 | 15 18 25 Greatest Support 40 | 20 20 40 Greatest Overweight (x) 4 | 4 . 1 Average Overweight (x) . | . . . Largest Inventory Capacity 8 | 8 8 8 Average Capacity 7 | 7 8 8 Most Carried 8 | 1 8 8 Average Carried 6 | . 5 7 Final Capacity 8 | 8 8 8 Final Carried 8 | 1 8 8 Class Distribution -------------------- 100% | Mutant Dominant Class ---------------- Mutant | -10/Materials Mutant | -10/Subcaves Resources | -11 -10 -10 ----------- Run | Yrd Mat Sub Matter Collected 517 | 288 84 145 Remotely 10 | . 10 . Salvage Created 684 | 135 262 287 Parts 41 | 8 10 23 Haulers Intercepted . | . . . Recyclers Shooed . | . . . Parts Field Recycled . | . . . Retrieved Matter . | . . . Parts Self-Destructed 17 | . . 17 Prevented . | . . . Kills | -11 -10 -10 ------- Run | Yrd Mat Sub Combat Hostiles Destroyed 14 | . 5 9 Guns 6 | . 2 4 Cannons 7 | . 3 4 Classes Destroyed 6 | 2 2 2 Tunneler 3 | 3 . . Recycler 1 | 1 . . Watcher 1 | . 1 . Swarmer 3 | . . 3 Grunt 5 | . 5 . Subdweller 6 | . . 6 Best Kill Streak 4 | 2 4 3 Combat Bots Only 4 | . 4 3 Max Kills in Single Turn 1 | 1 1 1 Gunslinging . | . . . Exploded . | . . . Melee . | . . . Uniques/NPCs Destroyed . | . . . Combat | -11 -10 -10 -------- Run | Yrd Mat Sub Hostile Shots Fired 94 | . 17 77 Missed 34 | . 3 31 Damage Taken 931 | 16 225 690 Core 261 | 8 86 167 Absorbed by Shields . | . . . Core Remaining (%) 96 | 96 . . Volleys Fired 62 | 11 18 33 Largest 2 | 2 2 2 Hottest 110 | 60 100 110 Shots Fired 119 | 22 36 61 Gun 76 | 22 26 28 Cannon 43 | . 10 33 Launcher . | . . . Special . | . . . Kinetic 46 | 11 8 27 Thermal 43 | . 10 33 Explosive . | . . . Electromagnetic 30 | 11 18 1 Robot Hit Streak 14 | 7 7 14 Robot Miss Streak 4 | 4 2 2 Penetration Max . | . . . Secondary Targets . | . . . Shots Hit Robots 81 | 14 26 41 Core Hits 30 | 5 9 16 Critical Kills 1 | . . 1 Critical Parts Destroyed . | . . . Critical Strikes 1 | . . 1 Meltdown 1 | . . 1 Melee Attacks . | . . . Impact . | . . . Slashing . | . . . Piercing . | . . . Sneak Attacks . | . . . Combat Hostiles . | . . . Follow-up Attacks . | . . . Damage Inflicted 1311 | 198 449 664 Guns 706 | 165 285 256 Cannons 529 | . 121 408 Explosions 76 | 33 43 . Melee . | . . . Ramming . | . . . Kinetic 404 | 69 79 256 Thermal 605 | 33 164 408 Explosive . | . . . Electromagnetic 302 | 96 206 . Impact . | . . . Slashing . | . . . Piercing . | . . . Highest Corruption . | . . . Average Corruption . | . . . Corruption Purged . | . . . Corruption Blocked . | . . . Overload Shots . | . . . Overflow Damage . | . . . Projectiles . | . . . Explosions . | . . . Melee . | . . . Knockbacks . | . . . Impact . | . . . Kinetic . | . . . Secondary . | . . . Self-Inflicted Damage 40 | 16 24 . Shots 2 | 1 1 . Rammed . | . . . Targets Rammed . | . . . Kicked . | . . . Crushed . | . . . Highest Temperature 394 | 12 394 . Average Temperature 139 | 12 145 . Received Heat Transfer 192 | . 108 84 Effects 2 | . 2 . Energy Bleed 2 | . 2 . Siege Activations . | . . . Robots Corrupted . | . . . Combat Hostiles . | . . . Parts Fried . | . . . Impact Corruptions . | . . . Robots Melted 1 | . . 1 Combat Hostiles 1 | . . 1 Parts Melted 2 | . . 2 Heat Transferred 1123 | 50 259 814 Parts Sabotaged . | . . . Parts Stolen . | . . . Parts Stripped . | . . . Power Chain Reactions 2 | 1 1 . Alert | -11 -10 -10 ------- Run | Yrd Mat Sub Peak Influence 165 | 20 165 . Initial 13 | . 13 . Average 74 | 7 92 . Maximum Alert Level . | . . . Low Security (%) 100 | 100 100 . Level 1 . | . . . Level 2 . | . . . Level 3 . | . . . Level 4 . | . . . Level 5 . | . . . High Security . | . . . Max Security . | . . . Squads Dispatched 1 | . 1 . Investigation . | . . . Extermination . | . . . Reinforcement 1 | . 1 . Assault . | . . . Garrison . | . . . Intercept . | . . . Searches Triggered . | . . . Construction Impeded . | . . . Haulers Reinforced . | . . . Active Scanning Responses . | . . . Cargo Convoy Interrupts . | . . . Stealth | -11 -10 -10 --------- Run | Yrd Mat Sub Distress Signals . | . . . Communications Jammed . | . . . Distress Signals . | . . . Times Spotted 21 | . 6 15 Peak Tracking Total 6 | . 4 6 Tactical Retreats 2 | . . 2 Traps | -11 -10 -10 ------- Run | Yrd Mat Sub Traps Triggered 2 | . . 2 Indirectly . | . . . Trap Hack Attempts . | . . . Triggered . | . . . Disarmed . | . . . Reprogrammed . | . . . Reused . | . . . Traps Extracted . | . . . Installed . | . . . Triggered . | . . . Machines | -11 -10 -10 ---------- Run | Yrd Mat Sub Machines Disabled . | . . . Max in Single Turn . | . . . Machines Repaired . | . . . Machines Dismantled . | . . . Machines Sabotaged . | . . . Overloaded Fab Kills . | . . . Hacking | -11 -10 -10 --------- Run | Yrd Mat Sub Machines Accessed 1 | . 1 . Terminals 1 | . 1 . Fabricators . | . . . Repair Stations . | . . . Recycling Units . | . . . Scanalyzers . | . . . Garrison Access . | . . . Total Hacks 1 | . 1 . Successful 1 | . 1 . Failed . | . . . Catastrophic . | . . . Database Lockouts . | . . . Manual . | . . . Terminals 1 | . 1 . Fabricators . | . . . Repair Stations . | . . . Recycling Units . | . . . Scanalyzers . | . . . Garrison Access . | . . . Terminal Hacks 1 | . 1 . Zone Layout 1 | . 1 . Fabricator Hacks . | . . . Repair Station Hacks . | . . . Recycling Unit Hacks . | . . . Scanalyzer . | . . . Garrison Access Hacks . | . . . Unauthorized Hacks . | . . . Terminals . | . . . Fabricators . | . . . Repair Stations . | . . . Recycling Units . | . . . Scanalyzers . | . . . Garrison Access . | . . . Data Cores Recovered . | . . . Used . | . . . Hacking Detections . | . . . Full Trace Events . | . . . Feedback Events . | . . . Feedback Blocked . | . . . Robot Schematics Acquired . | . . . Robots Built . | . . . Authchips . | . . . Time . | . . . Total Robot Build Rating . | . . . Part Schematics Acquired . | . . . Parts Built . | . . . Authchips . | . . . Time . | . . . Total Part Build Rating . | . . . Parts Repaired . | . . . Time . | . . . Parts Recycled . | . . . Recycled Matter . | . . . Retrieved Matter . | . . . Retrieved Components . | . . . Parts Scanalyzed . | . . . Part Schematics Acquired . | . . . Parts Damaged . | . . . Bothacking | -11 -10 -10 ------------ Run | Yrd Mat Sub Used RIF Installer . | . . . Robots Hacked . | . . . Non-combat . | . . . Combat . | . . . Robot Hacks Applied . | . . . Relay Couplers Released . | . . . Fabnet Peak Effective % . | . . . Robots Rewired . | . . . Allies Hacked . | . . . Hacks Repelled . | . . . Allies | -11 -10 -10 -------- Run | Yrd Mat Sub Total Allies . | . . . Largest Group . | . . . Highest-Rated Group . | . . . Highest-Rated Ally . | . . . Total Orders . | . . . Ally Attacks . | . . . Total Damage . | . . . Kills . | . . . Allies Corrupted . | . . . Allies Melted . | . . . Intel | -11 -10 -10 ------- Run | Yrd Mat Sub Robot Analysis Total . | . . . Derelict Logs Recovered 2 | . . 2 Drone Launches . | . . . Drone Recoveries . | . . . Exploration | -11 -10 -10 ------------- Run | Yrd Mat Sub Turns Passed 1609 | 117 422 1070 Spaces Moved 1001 | 52 198 751 Core 14 | 14 . . Treads . | . . . Legs 518 | 38 198 282 Wheels 469 | . . 469 Hover . | . . . Flight . | . . . Fastest Speed 50 | 50 120 110 Average Speed 124 | 141 120 124 Slowest Speed 250 | 250 120 190 Overloaded Moves . | . . . Propulsion Burnouts . | . . . Robots Hopped . | . . . Cave-ins Triggered . | . . . Exploration Rate (%) 29 | 4 39 46 Regions Visited 2 Branch Regions 1 Pre-discovered Areas . | . . . Known Exits Taken . | . . . Unknown Exits Taken 2 | 1 1 . Scrap Searched 2 | . . 2 Spaces Dug . | . . . Terrain Destroyed 7 | 2 3 2 Melee . | . . . Projectile 2 | . . 2 AOE 5 | 2 3 . Terrain Rammed . | . . . Walls Destroyed . | . . . Machines Disabled . | . . . Actions | -11 -10 -10 --------- Run | Yrd Mat Sub Total 1237 | 70 345 822 Wait 136 | . 116 20 Move 999 | 51 197 751 Hop . | . . . Pick Up 13 | 1 8 4 Fast Attach 11 | 7 . 4 Attach 3 | . 2 1 Detach 1 | . 1 . Swap 5 | . 3 2 Drop 7 | . . 7 Fire 62 | 11 18 33 Melee . | . . . Ram . | . . . Kick . | . . . Crush . | . . . Escape Stasis . | . . . Rewire . | . . . Trap . | . . . Miscellaneous . | . . . Route ------- -11/Scrapyard -10/Materials (discovered 2 exits: [*Mat] / [*Sub]) -10/Subcaves (discovered 3 exits: *Mat x2 / [*Rec]) History --------- Turn | Location | Event 35 | -11/Scrapyard | Discovered new exit (range 14) 118 | -11/Scrapyard | Entered Materials 317 | -10/Materials | Build established: Mutant 420 | -10/Materials | Discovered new exit (range 15) 519 | -10/Materials | Discovered new exit (range 5) 540 | -10/Materials | Entered Subcaves 560 | -10/Subcaves | Learned Materials emergency access door positions 616 | -10/Subcaves | Discovered new exit (range 12) 657 | -10/Subcaves | Discovered new exit (range 15) 698 | -10/Subcaves | Core integrity fell below 50% 1153 | -10/Subcaves | Core integrity fell below 20% 1186 | -10/Subcaves | Identified exit to Materials 1189 | -10/Subcaves | A swath of the cavern ceiling suddenly collapsed 1513 | -10/Subcaves | A swath of the cavern ceiling suddenly collapsed 1598 | -10/Subcaves | Disturbed a concealed Subdweller 1610 | -10/Subcaves | Destroyed by N6-6U4(R) with Subdweller Machine Gun Last Messages --------------- 01533_ Acquired 6 matter. 01585_ Searching scrap... 01585_ Found Sub. Beam Cannon. 01585_ Found Sub. Machine Gun. 01585_ Found 42 Matter. 01588_ Dropped Beam Cannon. 01589_ Acquired Sub. Beam Cannon. 01591_ Dropped Assault Rifle. 01592_ Acquired Sub. Machine Gun. 01593_ Acquired 20 matter. 01598_ N6-6U4(R) angrily emerges from the Twisted Machinery. 01599_ Searching scrap... 01599_ Found Flamer. 01599_ Found 48 Matter. 01601_ Acquired 2 matter. 01601_ Lgt. Armor Plating destroyed. 01604_ Acquired 2 matter. 01605_ N6-6U4(R) affixes Scrap Shield Fragment to Scrap Shield. 01606_ Ion Engine destroyed. 01610_ Acquired 2 matter. Map ----- +----------------------------------------------------+ | ???????????????????????????????????????????? | | ???????????????????????????????????????????? | | ???????????????????????????????????????????? | | ???????????????????????????????????????????? | | ???????????????????????????????????????????? | | ???????????????????????????????????????????? | | ???????????????????????????????????????????? | | ???????????????????????????????????????????? | | ???????????????????????????????????????????? | | ???????????????????????????????????????????? | | ???????????????????????????????????????????? | | ???????????????????????????????????????????? | | ???????????????????????????????????????????? | | ???????????????????????????????????????????? | | ???????????????????????????????????????????? | | ???????????????????????????????????????????? | | ??????????????????????????##???????????????? | | ???????????????????????###"###?????????????? | | ???????????????????????# ?????????????? | | ???????????????????????# ??? "???????? | | ??????????????????????## ???""""????????? | | ??????????????????????# #### ?????????? | | ??????????????????????? ??????????? | | ??????????????????????? # #???????????? | | ??????????????????###?## ## ##???????????? | | ?????????????????##@### #???????????? | | ?????????????????#$|#%#" #????????????? | | ?????????????????#; [] ##???????????? | | ?????????????????#$R<##" #???????????? | | ?????????????????#;$## #???????????? | | ?????????????????##### ##???????????? | | ????????????????????## ##????????????? | | ????????????????????# ##?????????????? | | ????????????????????# ##??????????????? | | ??????????????????### ##???????????????? | | ??????????????##### ##????????????????? | | ??????????????# #?????????????????? | | ??????????????# #?????????????????? | | ??????????????# ## ##?????????????????? | | ??????????????# ### #?????##???????????? | | ??????????????##??# #???? #???????????? | | ??????????????????# ###?# #???????????? | | ??????????????????## ## #???????????? | | ???????????????????# #???????????? | | ???????????????????# ## #???????????? | | ??????????????????## #? #???????????? | | ??????????????????# ## ###???????????? | | ??????????????????### #?????????????? | | ????????????????????## ##????????????? | | ?????????????????????# #????????????? | +----------------------------------------------------+ Best States ------------- Heat Dissipation 25 Energy Generation 10 Energy Capacity 250 Matter Stores 300 Matter Capacity 300 Sight Range 16 Terrain Scan Density 10 Armor Coverage 150 Evasion (%) 55 Item Schematics ----------------- None Robot Schematics ------------------ None Fabricated ------------ Nothing Alien Tech Used ----------------- None Achievements -------------- None Challenges ------------ None Game ------ Seed CoolingMiniRay Manual? 0 Play Time 00:13:05 Cumulative 5.1 hours Start 2024.08.11 @ 06:06:02 End 2024.08.11 @ 06:18:49 Sessions 1 Manual Loads 0 Difficulty Rogue Special Mode None Game No. 10 Rogue 10 Adventurer 0 Explorer 0 Win Type - Total 0 Types 0/0/0/0/0/0/0/0/0 Lore% 12 Gallery% 7 Achievement% 10 Wizard Run 0 Options --------- Layout 0 ASCII 0 Keyboard 1 Movement Arrows Keybinds 0 Fullscreen 2 Font 24/Smallcaps Map View 76x50 Zoom Use 0% Tactical HUD 1 Map Filters NONE Filters NONE Steam 1 RUN: e48ddbd1-00e1-442d-a88f-35ccf4319822